[Event "10th Iberoamericano-ch 2024"]
[Site "Linares"]
[Date "2024.09.25"]
[Round "2.11"]
[White "Romero Calduch, Sergio"]
[Black "Rodriguez Vila, Andres"]
[Result "1/2-1/2"]
[ECO "A40"]
[WhiteElo "2276"]
[BlackElo "2417"]
[Annotator "TA"]
[PlyCount "101"]
[EventDate "2024.09.25"]
[EventType "swiss"]
[EventCountry "ESP"]
[SourceTitle "playchess.com"]
[Source "ChessBase"]
[SourceQuality "1"]
[TimeControl "5400+30"]

{[%evp 9,101,-62,-48,-53,-50,-65,-70,-81,-27,-53,9,-118,-118,-148,-134,-129,-140,-137,-2,-168,-185,-181,-186,-200,-160,-231,-232,-286,-234,-232,-212,-406,-389,-374,-412,-372,-369,-405,-375,-366,-313,-324,-115,-113,-135,-144,-144,-123,-103,-113,-115,-114,-112,-127,-81,-89,0,0,0,0,0,0,0,0,0,0,0,0,0,0,0,0,0,0,0,0,0,0,0,0,0,-13,0,0,0,0,0,0,0,0,0,0,0,0]} 1. d4 {[%emt 0:01:56]} g6 {[%emt 0:00:41]} 2. c4 {[%emt 0:00:29]} Bg7 {[%emt 0:00:10]} 3. Nf3 {[%emt 0:00:12]} d6 {[%emt 0:00:57]} 4. h3 {[%emt 0:02:40]} f5 {[%emt 0:00:22]} 5. g4 {[%emt 0:08:25]} fxg4 {[%emt 0:00:56]} 6. hxg4 {[%emt 0:00:06] A41: 1 d4 d6: Tartakower Systeem en Moderne Verdediging.} Bxg4 {[%emt 0:00:19]} 7. Ng5 $146 {[%emt 0:02:05][%cal Od1d3]} ({Predecessor:} 7. Bg2 Nc6 8. d5 Ne5 9. Nd4 Nf6 10. f4 Ned7 11. Nc3 a5 12. b3 Nc5 13. Ba3 {0-1 Ponizil,C (2428)-Kampman,T (2090) Vlissingen HZ op 18th 2014 (2)}) 7... h6 $1 {[%emt 0:03:18] Sterk} 8. Rg1 {[%emt 0:04:48] Zwart staat iets beter.} Qd7 {[%emt 0:02:19] OK} 9. Ne4 {[%emt 0:13:03] OK} Nc6 {[%emt 0:04:04] Fout (0.6)} (9... Nf6 $15 10. f3 Bf5 11. Nxf6+ Bxf6) 10. Be3 {[%emt 0:00:51] was de enige mogelijkheid om het evenwicht te handhaven. Fout (1.3)} (10. d5 $11) 10... Nf6 {[%emt 0:05:42]} 11. Nxf6+ {[%emt 0:11:41]} Bxf6 {[%emt 0:00:11]} ({Weersta} 11... exf6 12. Nc3 $17) 12. Nc3 {[%emt 0:04:00] OK} Bf5 {[%emt 0:01:09] OK} 13. Bg2 {[%emt 0:04:09] Beste} {Zwart zou moeten spelen} e5 {[%emt 0:02:38] Fout (1.4)} (13... Na5 $17 14. b3 O-O-O) 14. Nd5 $2 {[%emt 0:04:54] en Wit heeft geen zorgen. Verliest partij (1.7)} (14. dxe5 $1 $11 Bxe5 15. Qb3 Bxc3+ 16. Qxc3) 14... Bg7 $36 {[%emt 0:00:18][%mdl 2048] Zwart drukt behoorlijk. Beste (Gemakkelijk)} 15. dxe5 {[%emt 0:03:57] OK} Nxe5 {[%emt 0:00:15][%cal Oc7c6] ...c6! is de sterke dreiging.} 16. Qb3 {[%emt 0:07:43] OK} c6 {[%emt 0:00:11] OK} 17. Nf4 {[%emt 0:00:58] Fout (0.7)} (17. Nc3 $17) 17... Qf7 {[%emt 0:00:19][%cal Og6g5] OK} 18. Bd4 {[%emt 0:07:23]} O-O {[%emt 0:01:15] Sterke dreiging met ...g5.} (18... Qxc4 $2 {verliest.} 19. Qxc4 (19. Qxb7 O-O $11) 19... Nxc4 20. Bxg7 $18) 19. O-O-O {[%emt 0:04:05] OK} g5 {[%emt 0:01:58]} (19... Qxc4+ 20. Qxc4+ Nxc4 21. Nxg6 Bxg6 22. Be4 $15) (19... Nxc4 20. Bh3 Bxh3 21. Nxg6 $16) 20. Bxe5 {[%emt 0:01:14] is de enige mogelijkheid voor Wit. Fout (1.9)} (20. Bh3 Bxh3 (20... gxf4 21. Bxe5 dxe5 22. Bxf5 $14) (20... Qxc4+ $2 21. Qxc4+ Nxc4 22. Bxg7 $19) 21. Nxh3) 20... dxe5 {[%emt 0:00:46]} (20... Bxe5 21. Nd3 $19) 21. Nd3 {[%emt 0:00:44] OK} e4 {[%emt 0:02:22] OK} 22. Nc5 {[%emt 0:06:36] OK} Qe7 {[%emt 0:00:45]} 23. Qe3 {[%emt 0:00:44]} Be5 {[%emt 0:01:30] met als doel voor ...Bf4. Het loperpaar is mooi..} 24. Bh3 {[%emt 0:07:45] OK} Bxh3 {[%emt 0:02:41]} 25. Qxh3 {[%emt 0:00:12]} Bg7 {[%emt 0:03:46] is dodelijker. Gemiste overwinning (2.1)} (25... Rxf2 26. Qxh6 Bf4+ (26... Qxc5 27. Rxg5+ Kf7 28. Rd7+) 27. Kb1 $18) (25... Qxc5 $19 26. Qxh6 Bg7 (26... Qxf2 27. Rxg5+ Kf7 28. Qg6+ Ke7 29. Rxe5#) (26... Qxc4+ 27. Kb1 $11) 27. Rxg5 Qe5 (27... Qxf2 28. Rxg7#) (27... Qxc4+ 28. Kb1 $11) 28. Rxe5 Bxh6+ 29. Kb1 Rae8 (29... Rxf2 $2 30. Rxe4 Bg7 31. Re7 $19) 30. Rxe8 Rxe8) 26. Ne6 $17 {[%emt 0:01:44] Beste} Rxf2 {[%emt 0:00:47] OK} 27. Nxg7 {[%emt 0:00:51] OK} Qxg7 {[%emt 0:00:23]} (27... Kxg7 $2 {te hebberig.} 28. Rd7 Re8 29. Rxe7+ Rxe7 30. Rd1 $18) 28. Qe6+ {[%emt 0:00:38] [#] Beste} Kh8 $1 {[%emt 0:04:30] Sterk} 29. Rd7 {[%emt 0:00:31] Beste} Qf6 {[%emt 0:00:20] OK} 30. Qxe4 {[%emt 0:00:33][%csl Gd7][%cal Re4h7] OK} Qf4+ {[%emt 0:00:26] OK} 31. Qxf4 {[%emt 0:00:25] Beste} Rxf4 {[%emt 0:00:02][%mdl 4096] Eindspel. KRR-KRR. Onnauwkeurig} 32. Rh1 {[%emt 0:00:36] [#] OK} {Zwart dient te overwegen.} Rxc4+ {[%emt 0:01:52] Fout (0.9)} (32... Rf6 $1 $17 {Wit moet nu ...b6 voorkomen.} 33. Rxb7 g4) 33. Kd2 $11 {[%emt 0:00:27] OK. De stelling is in evenwicht.} Rh4 {[%emt 0:00:11] Beste (Gemakkelijk)} 34. Rf1 {[%emt 0:00:29] OK} Rf4 {[%emt 0:00:55]} 35. Rxf4 {[%emt 0:00:24] OK} gxf4 {[%emt 0:00:01]} 36. Rxb7 {[%emt 0:00:15] KR-KR. OK} a5 {[%emt 0:02:17][%cal Ba7a5,Ba5a4][%mdl 32] EV=18.20. Goes to a4 (dbg)). OK} 37. Ke1 {[%emt 0:00:31]} a4 {[%emt 0:01:38] OK} 38. Kf2 {[%emt 0:00:44]} c5 {[%emt 0:02:30] OK} 39. Kf3 {[%emt 0:00:41]} Re8 {[%emt 0:01:53] OK} 40. Ra7 {[%emt 0:00:29]} Re3+ {[%emt 0:00:11] OK} 41. Kxf4 {[%emt 0:00:25]} Rxe2 {[%emt 0:00:07] OK} 42. Rxa4 {[%emt 0:00:32] OK} Rxb2 {[%emt 0:00:02] En nu zou ...Rb4+ winnen.} 43. Kf5 {[%emt 0:00:33] OK} Kg7 {[%emt 0:00:25]} 44. Ra7+ {[%emt 0:00:18] OK} Kf8 {[%emt 0:00:04]} 45. a4 {[%emt 0:00:43]} Ke8 {[%emt 0:00:13]} 46. Ke6 {[%emt 0:00:27] Wit dreigt Ra8+ en mat. OK} Rb6+ {[%emt 0:00:38] OK} 47. Kd5 {[%emt 0:00:09]} h5 {[%emt 0:00:07] OK} 48. Rh7 {[%emt 0:00:40]} Ra6 {[%emt 0:00:14] OK} 49. Rxh5 {[%emt 0:00:35]} Rxa4 {[%emt 0:00:06] OK} 50. Rh8+ {[%emt 0:00:27]} Kf7 {[%emt 0:00:05] OK} 51. Kxc5 {[%emt 0:00:05] Wit kan nog net een remise eruit slepen.   Blunder waarde: Wit=0.25 (precies) /Zwart=0.21 (precies) . OK.  Verliest partij:   	Wit=1      	---        Gemiste overwinning: 	---       	Zwart=1      Fout:        	Wit=3      	Zwart=3      Onnauwkeurig:    	---       	Zwart=1      OK:         	Wit=20     	Zwart=19     Beste:        	Wit=5      	Zwart=2      Sterk:        	---       	Zwart=2} 1/2-1/2

[Event "10th Iberoamericano-ch 2024"]
[Site "Linares"]
[Date "2024.09.25"]
[Round "2.12"]
[White "Garcia Ramos, Daniel"]
[Black "Giron, Jorge Ernesto"]
[Result "1-0"]
[ECO "B90"]
[WhiteElo "2415"]
[BlackElo "2276"]
[Annotator "TA"]
[PlyCount "69"]
[EventDate "2024.09.25"]
[EventType "swiss"]
[EventCountry "ESP"]
[SourceTitle "playchess.com"]
[Source "ChessBase"]
[SourceQuality "1"]
[TimeControl "5400+30"]

{[%evp 21,69,24,10,0,0,0,0,0,42,0,0,0,81,82,83,105,72,85,156,145,155,157,179,171,159,152,189,153,226,225,290,287,314,249,432,442,587,557,1157,764,764,533,29988,29989,29989,29984,29984,1110,1197,1171]} 1. e4 {[%emt 0:01:13]} c5 {[%emt 0:01:25]} 2. Nf3 {[%emt 0:00:11]} d6 {[%emt 0:00:07]} 3. d4 {[%emt 0:00:21]} cxd4 {[%emt 0:00:06]} 4. Nxd4 {[%emt 0:00:29]} Nf6 {[%emt 0:00:08]} 5. Nc3 {[%emt 0:00:34]} a6 {[%emt 0:00:07]} 6. f3 {[%emt 0:00:17]} e5 {[%emt 0:00:06]} 7. Nb3 {[%emt 0:00:12]} Be6 {[%emt 0:00:06]} 8. Be3 {[%emt 0:00:35]} Be7 {[%emt 0:00:21]} 9. Qd2 {[%emt 0:00:31]} Nbd7 {[%emt 0:00:11]} 10. g4 {[%emt 0:03:02][%cal Bg2g4,Bg4g5][%mdl 32]} b5 {[%emt 0:01:33]} 11. g5 {[%emt 0:13:57]} Nh5 {[%emt 0:01:29]} 12. Rg1 {[%emt 0:01:24]} O-O {[%emt 0:01:41]} 13. Nd5 {[%emt 0:05:01] Against Nb6} Bxd5 {[%emt 0:02:40]} 14. exd5 {[%emt 0:00:42] The position is equal.} f5 {[%emt 0:10:34]} 15. gxf6 {[%emt 0:20:54]} Bxf6 {[%emt 0:01:00] And now ...Bh4+ would win.} 16. O-O-O {[%emt 0:00:45]} a5 {[%emt 0:11:11]} (16... Nb6 $11 {remains equal.}) 17. Bxb5 $16 {[%emt 0:12:14] Black is now going downhill.} a4 {[%emt 0:00:07] [#] Black is weak on the light squares} 18. Na5 {[%emt 0:00:09] White has more active pieces.} Rxa5 {[%emt 0:08:07]} 19. Bxd7 {[%emt 0:00:19] A strong pair of Bishops.} Qc7 {[%emt 0:01:48]} ({Black should try} 19... Ra8 20. Bc6 Rb8) 20. Bc6 $36 {[%emt 0:10:15][%mdl 2048] White is on the roll.} Rb8 {[%emt 0:01:44]} 21. c3 {[%emt 0:00:22]} Kh8 {[%emt 0:09:12]} 22. Qc2 {[%emt 0:02:18]} Nf4 {[%emt 0:02:20]} 23. Rg4 (23. Bxa4 Ne2+ (23... Nxd5 24. Bd2 $14) 24. Kd2 (24. Qxe2 Rxa4 25. Kc2 e4 $19) 24... Nxg1 25. Rxg1 Qc8 $17 (25... Rxd5+ 26. Kc1 $17)) 23... Ra6 {[%emt 0:02:50]} 24. Kb1 {[%emt 0:09:49]} ({And not} 24. Bxa4 h5 25. Rxf4 exf4 $11) 24... Qa5 {[%emt 0:12:33] [#]} (24... a3 $16 {might work better.} 25. b3 Rxc6 26. dxc6 Qxc6) 25. a3 $1 $18 {[%emt 0:05:51]} h5 {[%emt 0:04:00]} 26. Rgg1 {[%emt 0:00:22]} Ne6 {[%emt 0:06:02]} 27. Rg6 {[%emt 0:03:50]} Nf8 {[%emt 0:02:20]} (27... Nf4) 28. Rg2 {[%emt 0:03:10]} Ne6 {[%emt 0:09:01][%cal Bf8e6,Be6d8,Bd8c6][%mdl 32]} 29. Qf5 {[%emt 0:02:57] Against Nf4} Qxc3 {[%emt 0:02:06]} 30. Qxh5+ {[%emt 0:02:05]} Kg8 {[%emt 0:00:01][%cal Bh8g8,Bg8f8,Bf8e7][%mdl 32]} 31. Be8 {[%emt 0:01:39]} (31. Qe8+ Rxe8 32. bxc3 Rb8+ 33. Rb2 Rxb2+ 34. Kxb2 Ng5 $18) 31... Nd8 {[%emt 0:02:48] [#] Wards off Bf7+} 32. Bg6 {[%emt 0:00:06]} Nc6 {[%emt 0:04:38]} 33. Qh7+ {[%emt 0:00:33]} Kf8 {[%emt 0:00:01]} 34. Qh8+ {[%emt 0:00:19]} (34. dxc6 $142 Qxc6 35. Qh8+ Ke7 36. Qxb8 Ra8 37. Qb4 Rf8 38. Rxd6 Qxd6 39. Bc5 (39. Qxa4 Rd8 $18)) 34... Ke7 {[%emt 0:00:03] [#]} 35. Qxb8 $3 {[%emt 0:00:07][%mdl 512] Weighted Error Value: White=0.37/Black=0.70.  Mistake:       	---       	Black=4      Inaccurate:     	White=2     	Black=3      OK:         	White=7     	Black=5      Best:        	White=2     	Black=2      Brilliant:      	White=1     	---} 1-0

[Event "10th Iberoamericano-ch 2024"]
[Site "Linares"]
[Date "2024.09.25"]
[Round "2.13"]
[White "Gavarrete, Nahun"]
[Black "Merario Alarcon, Andres"]
[Result "1/2-1/2"]
[ECO "B33"]
[WhiteElo "2272"]
[BlackElo "2408"]
[Annotator "TA"]
[PlyCount "80"]
[EventDate "2024.09.25"]
[EventType "swiss"]
[EventCountry "ESP"]
[SourceTitle "playchess.com"]
[Source "ChessBase"]
[SourceQuality "1"]
[TimeControl "5400+30"]

{[%evp 20,80,25,7,60,37,64,32,26,0,0,-7,0,-1,8,0,0,0,0,0,7,0,15,0,37,15,12,0,0,0,0,-10,0,0,0,0,60,58,69,45,46,-17,-12,-25,-19,-27,-23,-20,-25,-24,-20,-15,-2,-2,0,0,5,0,24,12,14,5,10]} 1. e4 {[%emt 0:00:12]} c5 {[%emt 0:00:27]} 2. Nf3 {[%emt 0:00:20]} Nc6 {[%emt 0:00:09]} 3. d4 {[%emt 0:01:27]} cxd4 {[%emt 0:00:19]} 4. Nxd4 {[%emt 0:00:07]} Nf6 {[%emt 0:00:09]} 5. Nc3 {[%emt 0:00:10]} e5 {[%emt 0:00:10]} 6. Ndb5 {[%emt 0:00:19]} d6 {[%emt 0:00:09]} 7. Bg5 {[%emt 0:01:19]} a6 {[%emt 0:00:28]} 8. Na3 {[%emt 0:00:10]} b5 {[%emt 0:00:09]} 9. Nd5 {[%emt 0:00:06]} Be7 {[%emt 0:00:15]} 10. Bxf6 {[%emt 0:00:21]} Bxf6 {[%emt 0:00:05]} 11. c4 {[%emt 0:00:18]} O-O {[%emt 0:00:59]} ({Better is} 11... b4 $11 12. Nc2 a5) 12. cxb5 $14 {[%emt 0:02:49]} Nd4 {[%emt 0:00:13]} 13. b6 {[%emt 0:01:15]} Rb8 {[%emt 0:01:16] White is slightly better.} 14. Nc4 {[%emt 0:00:08]} Be6 {[%emt 0:01:17]} 15. Bd3 {[%emt 0:01:16]} Bxd5 {[%emt 0:00:44]} 16. exd5 {[%emt 0:00:22]} Qd7 {[%emt 0:02:44]} 17. O-O {[%emt 0:01:10] And now a4 would win.} Bd8 $1 {[%emt 0:00:21]} 18. f4 {[%emt 0:18:34]} Bxb6 {[%emt 0:01:44]} 19. Kh1 {[%emt 0:01:01]} Rfe8 {[%emt 0:13:31]} 20. Re1 {[%emt 0:15:25]} f6 {[%emt 0:12:34]} 21. Rc1 {[%emt 0:15:49]} Ba7 {[%emt 0:03:23]} 22. fxe5 {[%emt 0:08:39]} dxe5 {[%emt 0:03:20]} 23. d6 {[%emt 0:00:34][%cal Oc4e5]} g6 {[%emt 0:11:19]} 24. Qd2 {[%emt 0:09:11][%cal Oc4e5]} Rbd8 {[%emt 0:08:09]} 25. Qh6 {[%emt 0:05:18][%cal Oc4e5] [#] Hoping for Nxe5!} Nf5 {[%emt 0:11:50]} 26. Bxf5 {[%emt 0:00:44]} Qxf5 {[%emt 0:00:36]} 27. Nd2 {[%emt 0:05:50][%cal Bc4d2,Bd2e4,Be4g3,Bg3f5,Bf5e7,Be7d5][%mdl 32] Threatens to win with Rc7.} Qh5 {[%emt 0:21:44]} ({Black should play} 27... Rxd6 $11 28. Ne4 Rd7) 28. Qxh5 {[%emt 0:00:08]} gxh5 {[%emt 0:00:01]} 29. Ne4 {[%emt 0:01:04] White is more active.} Rf8 {[%emt 0:00:07]} 30. Rf1 {[%emt 0:04:31]} ({White should try} 30. Rc6 $14) 30... f5 $11 {[%emt 0:00:53]} 31. Ng3 {[%emt 0:00:01][%csl LRf5,LRh5]} Rxd6 {[%emt 0:01:50]} 32. Nxf5 {[%emt 0:03:15]} Rdf6 {[%emt 0:02:03]} 33. Ne7+ {[%emt 0:00:56]} Kg7 {[%emt 0:00:42]} 34. Rxf6 {[%emt 0:00:46]} Rxf6 {[%emt 0:00:26][%mdl 4096] Endgame. KRB-KRN} 35. g3 {[%emt 0:01:40]} Bd4 {[%emt 0:02:13][%cal Of6f2]} 36. Rc2 e4 37. Nd5 Rf1+ 38. Kg2 Rg1+ 39. Kh3 Kg6 40. Nf4+ Kf5 {Weighted Error Value: White=0.10 (very precise) /Black=0.12 (very precise) .  Mistake:       	White=1     	Black=1      Inaccurate:     	White=2     	Black=2      OK:         	White=11    	Black=10     Best:        	White=3     	Black=3      Strong:       	---       	Black=1} 1/2-1/2

[Event "10th Iberoamericano-ch 2024"]
[Site "Linares"]
[Date "2024.09.25"]
[Round "2.14"]
[White "Zambrana, Osvaldo"]
[Black "Mingarro Carceller, Sergi"]
[Result "0-1"]
[ECO "B94"]
[WhiteElo "2405"]
[BlackElo "2273"]
[Annotator "RC"]
[PlyCount "84"]
[EventDate "2024.09.25"]
[EventType "swiss"]
[EventCountry "ESP"]
[SourceTitle "playchess.com"]
[Source "ChessBase"]
[SourceQuality "1"]
[TimeControl "5400+30"]

1. e4 {[%emt 0:00:08]} c5 {[%emt 0:00:28]} 2. Nf3 {[%emt 0:00:13]} d6 {[%emt 0:00:09]} 3. d4 {[%emt 0:00:30]} cxd4 {[%emt 0:00:08]} 4. Nxd4 {[%emt 0:00:04]} Nf6 {[%emt 0:00:21]} 5. Nc3 {[%emt 0:00:07]} a6 {[%emt 0:00:12]} 6. Bg5 {[%emt 0:00:07]} Nbd7 {[%emt 0:00:45]} 7. Qe2 {[%emt 0:00:20]} h6 {[%emt 0:01:42]} 8. Bh4 {[%emt 0:00:30]} g6 {[%emt 0:00:32]} 9. f4 {[%emt 0:00:12]} e5 {[%emt 0:00:49]} 10. fxe5 {[%emt 0:00:24]} dxe5 {[%emt 0:00:10]} 11. O-O-O {[%emt 0:00:14]} Qc7 {[%emt 0:00:49]} 12. Nb3 {[%emt 0:00:10]} b5 {[%emt 0:00:55]} 13. Nd5 {[%emt 0:00:09]} Nxd5 {[%emt 0:01:15]} 14. exd5 {[%emt 0:00:06]} Bd6 {[%emt 0:00:59]} 15. Qd2 {[%emt 0:00:18]} f5 {[%emt 0:05:23]} 16. g4 {[%emt 0:03:06]} f4 {[%emt 0:04:08]} 17. Bd3 {[%emt 0:00:28]} Kf7 {[%emt 0:01:04]} 18. g5 {[%emt 0:12:16]} h5 {[%emt 0:05:47]} 19. Be4 {[%emt 0:03:08]} a5 {[%emt 0:08:09]} 20. Qd3 {[%emt 0:01:45]} a4 {[%emt 0:07:59]} 21. Nd2 {[%emt 0:02:05]} Nc5 {[%emt 0:02:13]} 22. Qc3 {[%emt 0:04:23]} b4 {[%emt 0:02:43]} 23. Qf3 {[%emt 0:08:24]} Bg4 {[%emt 0:03:49]} 24. Qg2 {[%emt 0:00:21]} b3 {[%emt 0:02:16]} 25. Kb1 {[%emt 0:00:08]} bxa2+ {[%emt 0:13:48]} 26. Kxa2 {[%emt 0:00:50]} Bxd1 {[%emt 0:01:45]} 27. Rxd1 {[%emt 0:00:06]} Rhb8 {[%emt 0:01:01]} 28. Qe2 {[%emt 0:08:50]} a3 {[%emt 0:02:20]} 29. b3 {[%emt 0:00:51]} Na4 {[%emt 0:01:58]} 30. Qd3 {[%emt 0:06:19]} Nc3+ {[%emt 0:02:40]} 31. Ka1 {[%emt 0:00:09]} Nxd1 {[%emt 0:01:00]} 32. Bxg6+ {[%emt 0:00:34]} Kg7 {[%emt 0:01:12]} 33. Ne4 {[%emt 0:04:21]} Ne3 {[%emt 0:02:19]} 34. c4 {[%emt 0:00:51]} Qb6 {[%emt 0:06:39]} 35. Nxd6 {[%emt 0:05:22]} Qxd6 {[%emt 0:00:16]} 36. Be4 {[%emt 0:00:09]} a2 {[%emt 0:02:57]} 37. Qc3 {[%emt 0:01:25]} Rc8 {[%emt 0:03:18]} 38. Be1 {[%emt 0:04:56]} Ra3 {[%emt 0:02:28]} 39. Qb2 {[%emt 0:02:18]} Nxc4 {[%emt 0:00:53]} 40. bxc4 {[%emt 0:02:02]} Rxc4 {[%emt 0:00:10]} 41. Qb7+ {[%emt 0:10:56]} Rc7 {[%emt 0:01:19]} 42. Bb4 {[%emt 0:00:50]} Qd7 {[%emt 0:02:46]} 0-1

[Event "10th Iberoamericano-ch 2024"]
[Site "Linares"]
[Date "2024.09.25"]
[Round "2.15"]
[White "Ruiz Buendia, Miguel"]
[Black "Matamoros Franco, Carlos S."]
[Result "1/2-1/2"]
[ECO "B12"]
[WhiteElo "2269"]
[BlackElo "2404"]
[Annotator "RC"]
[PlyCount "32"]
[EventDate "2024.09.25"]
[EventType "swiss"]
[EventCountry "ESP"]
[SourceTitle "playchess.com"]
[Source "ChessBase"]
[SourceQuality "1"]
[TimeControl "5400+30"]

1. e4 {[%emt 0:04:05]} c6 {[%emt 0:00:15]} 2. d4 {[%emt 0:00:34]} d5 {[%emt 0:00:12]} 3. e5 {[%emt 0:00:14]} c5 {[%emt 0:00:11]} 4. Nf3 {[%emt 0:00:22]} Nc6 {[%emt 0:01:04]} 5. dxc5 {[%emt 0:01:46]} Bg4 {[%emt 0:00:29]} 6. c3 {[%emt 0:00:14]} e6 {[%emt 0:00:19]} 7. Be3 {[%emt 0:00:15]} Bxf3 {[%emt 0:00:10]} 8. Qxf3 {[%emt 0:00:14]} a6 {[%emt 0:00:03]} 9. Qg3 {[%emt 0:14:37]} h5 {[%emt 0:01:20]} 10. h4 {[%emt 0:01:56]} Nh6 {[%emt 0:00:45]} 11. Bxh6 {[%emt 0:08:06]} Rxh6 {[%emt 0:00:22]} 12. Bd3 {[%emt 0:00:23]} Qc7 {[%emt 0:17:01]} 13. f4 {[%emt 0:02:52]} O-O-O {[%emt 0:04:46]} 14. Nd2 {[%emt 0:06:01]} f6 {[%emt 0:12:07]} 15. Nf3 {[%emt 0:15:11]} Bxc5 {[%emt 0:00:12]} 16. O-O-O {[%emt 0:01:02]} Kb8 {[%emt 0:20:53]} 1/2-1/2